[Event "Late-Titled-Tuesday-Blitz-October-17-2023"]
[Site "Chess.com"]
[Date "2023.10.17"]
[Round "11"]
[White "Chempiblinka"]
[Black "Schwindle"]
[Result "1-0"]
[WhiteElo "2323"]
[BlackElo "2374"]
[TimeControl "180+1"]
[EndTime "16:01:12 PDT"]
[Termination "Chempiblinka won by resignation"]

1. Nf3 {[%clk 0:03:00.9]} 1... Nf6 {[%clk 0:02:59.8]} 2. c4 {[%clk 0:03:00.3]}
2... e6 {[%clk 0:02:59.9]} 3. g3 {[%clk 0:03:00.9]} 3... d5 {[%clk 0:02:59.6]}
4. Bg2 {[%clk 0:03:01.6]} 4... Be7 {[%clk 0:02:58.4]} 5. O-O {[%clk 0:03:02]}
5... O-O {[%clk 0:02:57.2]} 6. d4 {[%clk 0:03:02.6]} 6... dxc4 {[%clk
0:02:57.2]} 7. a4 {[%clk 0:02:59.5]} 7... a6 {[%clk 0:02:42.2]} 8. Qc2 {[%clk
0:02:59.3]} 8... Bd7 {[%clk 0:02:29.2]} 9. Ne5 {[%clk 0:02:52.6]} 9... Bc6
{[%clk 0:02:26.9]} 10. Nxc6 {[%clk 0:02:50.6]} 10... Nxc6 {[%clk 0:02:27]} 11.
Bxc6 {[%clk 0:02:45.2]} 11... bxc6 {[%clk 0:02:25.4]} 12. Qxc4 {[%clk
0:02:44.8]} 12... Qd5 {[%clk 0:02:21.4]} 13. Nd2 {[%clk 0:02:38.8]} 13... Rfd8
{[%clk 0:02:19.3]} 14. e3 {[%clk 0:02:30.1]} 14... Qh5 {[%clk 0:02:15.3]} 15.
Kg2 {[%clk 0:02:11.7]} 15... c5 {[%clk 0:02:12.1]} 16. Nf3 {[%clk 0:02:01.5]}
16... cxd4 {[%clk 0:02:05.5]} 17. exd4 {[%clk 0:02:02.4]} 17... c5 {[%clk
0:01:46.7]} 18. dxc5 {[%clk 0:01:49.5]} 18... Bxc5 {[%clk 0:01:44.8]} 19. Bf4
{[%clk 0:01:47.6]} 19... Nd5 {[%clk 0:01:36.1]} 20. Bg5 {[%clk 0:01:32.8]} 20...
f6 {[%clk 0:01:31.4]} 21. Qxc5 {[%clk 0:01:28.9]} 21... fxg5 {[%clk 0:01:30.8]}
22. Qc6 {[%clk 0:01:15.1]} 22... Re8 {[%clk 0:01:15]} 23. Rae1 {[%clk
0:01:14.4]} 23... Rac8 {[%clk 0:01:08.4]} 24. Qxa6 {[%clk 0:01:11]} 24... Nf4+
{[%clk 0:01:02.7]} 25. gxf4 {[%clk 0:00:58.9]} 25... Qg4+ {[%clk 0:01:02.2]} 26.
Kh1 {[%clk 0:00:58]} 26... Qxf3+ {[%clk 0:01:02.5]} 27. Kg1 {[%clk 0:00:57.7]}
27... gxf4 {[%clk 0:00:50]} 28. Qe2 {[%clk 0:00:49.4]} 28... Qh3 {[%clk
0:00:45.8]} 29. f3 {[%clk 0:00:39.5]} 29... Rc5 {[%clk 0:00:38.7]} 30. Kh1
{[%clk 0:00:36.9]} 30... Rg5 {[%clk 0:00:17.5]} 31. Rg1 {[%clk 0:00:36.7]} 31...
Rxg1+ {[%clk 0:00:16.6]} 32. Rxg1 {[%clk 0:00:37.6]} 32... e5 {[%clk 0:00:15.5]}
33. Qc4+ {[%clk 0:00:29.8]} 33... Kh8 {[%clk 0:00:15.3]} 34. Qe4 {[%clk
0:00:30.1]} 34... h6 {[%clk 0:00:13]} 35. Qe2 {[%clk 0:00:29.1]} 35... Qf5
{[%clk 0:00:12.2]} 36. Qg2 {[%clk 0:00:24.7]} 36... Re7 {[%clk 0:00:11.4]} 37.
b4 {[%clk 0:00:24.8]} 37... Qf6 {[%clk 0:00:10.2]} 38. b5 {[%clk 0:00:24.6]}
38... Qb6 {[%clk 0:00:09.5]} 39. Qg6 {[%clk 0:00:22.2]} 39... Qe3 {[%clk
0:00:07.1]} 40. Qe4 {[%clk 0:00:20.8]} 40... Qxe4 {[%clk 0:00:06.4]} 41. fxe4
{[%clk 0:00:21.7]} 41... Ra7 {[%clk 0:00:06.3]} 42. Ra1 {[%clk 0:00:19.7]} 42...
Kg8 {[%clk 0:00:06]} 43. a5 {[%clk 0:00:19.7]} 1-0

[Event "Late-Titled-Tuesday-Blitz-October-17-2023"]
[Site "Chess.com"]
[Date "2023.10.17"]
[Round "11"]
[White "ckgchess"]
[Black "DarkAlekhine"]
[Result "1/2-1/2"]
[WhiteElo "2870"]
[BlackElo "2737"]
[TimeControl "180+1"]
[EndTime "16:01:20 PDT"]
[Termination "Game drawn by repetition"]

1. e4 {[%clk 0:03:00.9]} 1... Nf6 {[%clk 0:02:59.3]} 2. e5 {[%clk 0:03:00.5]}
2... Nd5 {[%clk 0:02:59.9]} 3. d4 {[%clk 0:03:00.5]} 3... d6 {[%clk 0:03:00.4]}
4. Nf3 {[%clk 0:03:01]} 4... g6 {[%clk 0:03:00]} 5. Bc4 {[%clk 0:02:58.3]} 5...
Nb6 {[%clk 0:03:00.2]} 6. Be2 {[%clk 0:02:57.9]} 6... Bg7 {[%clk 0:02:59.7]} 7.
O-O {[%clk 0:02:57.9]} 7... O-O {[%clk 0:02:56.6]} 8. exd6 {[%clk 0:02:53]} 8...
cxd6 {[%clk 0:02:50.9]} 9. Re1 {[%clk 0:02:51.4]} 9... Nc6 {[%clk 0:02:49.9]}
10. Nc3 {[%clk 0:02:40.3]} 10... Bg4 {[%clk 0:02:40.6]} 11. h3 {[%clk
0:02:40.4]} 11... Bxf3 {[%clk 0:02:39.6]} 12. Bxf3 {[%clk 0:02:41.3]} 12... Nxd4
{[%clk 0:02:33]} 13. Bxb7 {[%clk 0:02:40.8]} 13... Rb8 {[%clk 0:02:33.5]} 14.
Ba6 {[%clk 0:02:37.3]} 14... e6 {[%clk 0:02:15.4]} 15. Ne4 {[%clk 0:02:22.2]}
15... d5 {[%clk 0:02:12]} 16. Ng5 {[%clk 0:02:14.8]} 16... Na4 {[%clk
0:02:05.4]} 17. c3 {[%clk 0:02:12.4]} 17... Nxb2 {[%clk 0:02:03.4]} 18. Bxb2
{[%clk 0:02:12.3]} 18... Qxg5 {[%clk 0:02:01.5]} 19. Bc1 {[%clk 0:02:09.9]}
19... Qh4 {[%clk 0:01:22.8]} 20. g3 {[%clk 0:02:00.6]} 20... Qf6 {[%clk
0:00:50.2]} 21. cxd4 {[%clk 0:01:59.9]} 21... Qxd4 {[%clk 0:00:51.1]} 22. Bf4
{[%clk 0:01:41.8]} 22... Rb6 {[%clk 0:00:38.4]} 23. Qxd4 {[%clk 0:01:00.7]}
23... Bxd4 {[%clk 0:00:39.3]} 24. Rad1 {[%clk 0:01:01.3]} 24... Bc3 {[%clk
0:00:38.5]} 25. Bd3 {[%clk 0:00:45.8]} 25... Bxe1 {[%clk 0:00:37]} 26. Rxe1
{[%clk 0:00:46.7]} 26... Rc8 {[%clk 0:00:29.3]} 27. a4 {[%clk 0:00:45.7]} 27...
f6 {[%clk 0:00:18.3]} 28. a5 {[%clk 0:00:35.2]} 28... Rb3 {[%clk 0:00:16.9]} 29.
Bb1 {[%clk 0:00:25.5]} 29... e5 {[%clk 0:00:16.9]} 30. Ba2 {[%clk 0:00:26.2]}
30... Rb5 {[%clk 0:00:16]} 31. Bh6 {[%clk 0:00:23.8]} 31... Rxa5 {[%clk
0:00:13.3]} 32. Bb3 {[%clk 0:00:23.7]} 32... Rb5 {[%clk 0:00:12]} 33. Ba4 {[%clk
0:00:23.7]} 33... Rb4 {[%clk 0:00:11.8]} 34. Bd7 {[%clk 0:00:24]} 34... Rcb8
{[%clk 0:00:09.5]} 35. Be6+ {[%clk 0:00:24.3]} 35... Kh8 {[%clk 0:00:09.6]} 36.
Kg2 {[%clk 0:00:25.2]} 36... Rb1 {[%clk 0:00:08]} 37. Re2 {[%clk 0:00:24]} 37...
R8b2 {[%clk 0:00:08]} 38. Re3 {[%clk 0:00:22.5]} 38... Rb3 {[%clk 0:00:07.6]}
39. Re2 {[%clk 0:00:17.5]} 39... R1b2 {[%clk 0:00:07.2]} 40. Re1 {[%clk
0:00:17.4]} 40... Rb1 {[%clk 0:00:07.6]} 41. Re2 {[%clk 0:00:13.2]} 41... R1b2
{[%clk 0:00:07.5]} 42. Re1 {[%clk 0:00:12]} 42... Rb1 {[%clk 0:00:06.1]} 43. Re2
{[%clk 0:00:12.5]} 1/2-1/2

[Event "Late-Titled-Tuesday-Blitz-October-17-2023"]
[Site "Chess.com"]
[Date "2023.10.17"]
[Round "11"]
[White "Kostukov_Alex"]
[Black "NigelDwarf"]
[Result "0-1"]
[WhiteElo "2420"]
[BlackElo "2558"]
[TimeControl "180+1"]
[EndTime "16:01:20 PDT"]
[Termination "NigelDwarf won on time"]

1. g3 {[%clk 0:02:49.9]} 1... h5 {[%clk 0:02:54.7]} 2. Nf3 {[%clk 0:02:49.5]}
2... h4 {[%clk 0:02:45.3]} 3. Nxh4 {[%clk 0:02:48.2]} 3... e5 {[%clk 0:02:39.7]}
4. Nf3 {[%clk 0:02:47.4]} 4... e4 {[%clk 0:02:38.5]} 5. Nd4 {[%clk 0:02:47.4]}
5... d5 {[%clk 0:02:38.5]} 6. d3 {[%clk 0:02:45.7]} 6... Nf6 {[%clk 0:02:35.5]}
7. c4 {[%clk 0:02:32.6]} 7... Nc6 {[%clk 0:02:32]} 8. Nxc6 {[%clk 0:02:29.8]}
8... bxc6 {[%clk 0:02:32.9]} 9. cxd5 {[%clk 0:02:26.6]} 9... cxd5 {[%clk
0:02:31.8]} 10. Nc3 {[%clk 0:02:26.5]} 10... e3 {[%clk 0:02:24.2]} 11. fxe3
{[%clk 0:02:19.3]} 11... Bd6 {[%clk 0:02:13.7]} 12. Bg2 {[%clk 0:01:43]} 12...
Rxh2 {[%clk 0:01:52.6]} 13. O-O {[%clk 0:01:31.4]} 13... Bxg3 {[%clk 0:01:46.4]}
14. e4 {[%clk 0:01:18.9]} 14... d4 {[%clk 0:01:37.8]} 15. Rf3 {[%clk 0:01:04.7]}
15... Be5 {[%clk 0:01:00.6]} 16. Qa4+ {[%clk 0:00:50.2]} 16... Bd7 {[%clk
0:00:58.4]} 17. Qa5 {[%clk 0:00:49.4]} 17... Ng4 {[%clk 0:00:52.4]} 18. Bf4
{[%clk 0:00:41]} 18... Bxf4 {[%clk 0:00:41.4]} 19. Rxf4 {[%clk 0:00:40.9]} 19...
Qh4 {[%clk 0:00:38.9]} 20. Rxg4 {[%clk 0:00:36.5]} 20... Qxg4 {[%clk 0:00:31.5]}
21. Qe5+ {[%clk 0:00:33.5]} 21... Be6 {[%clk 0:00:31.4]} 22. Qxh2 {[%clk
0:00:26]} 22... dxc3 {[%clk 0:00:19]} 23. Qh8+ {[%clk 0:00:24.4]} 23... Kd7
{[%clk 0:00:18]} 24. Qxa8 {[%clk 0:00:24.9]} 24... cxb2 {[%clk 0:00:17.8]} 25.
Rf1 {[%clk 0:00:23.6]} 25... Qxe2 {[%clk 0:00:16.3]} 26. Qb7 {[%clk 0:00:22.9]}
26... Bxa2 {[%clk 0:00:11.4]} 27. Qb5+ {[%clk 0:00:16.5]} 27... Kd8 {[%clk
0:00:10.9]} 28. Bh3 {[%clk 0:00:12.3]} 28... Qe3+ {[%clk 0:00:10]} 29. Kh2
{[%clk 0:00:11.1]} 29... Qe2+ {[%clk 0:00:09.7]} 30. Kg3 {[%clk 0:00:11.1]}
30... Qe3+ {[%clk 0:00:08.1]} 31. Rf3 {[%clk 0:00:11.2]} 31... Qe1+ {[%clk
0:00:07.5]} 32. Kh2 {[%clk 0:00:09.5]} 32... Qe2+ {[%clk 0:00:07.2]} 33. Kg3
{[%clk 0:00:09]} 33... Qe1+ {[%clk 0:00:07.2]} 34. Kf4 {[%clk 0:00:08.4]} 34...
Qc1+ {[%clk 0:00:06.1]} 35. Kg3 {[%clk 0:00:02.3]} 35... Qg1+ {[%clk 0:00:06.1]}
36. Kh4 {[%clk 0:00:01.3]} 36... g5+ {[%clk 0:00:05.4]} 37. Kh5 {[%clk
0:00:01.2]} 37... g4 {[%clk 0:00:05.6]} 38. Bxg4 {[%clk 0:00:01.6]} 38... Qh2+
{[%clk 0:00:04.9]} 39. Rh3 {[%clk 0:00:01.1]} 39... Qd6 {[%clk 0:00:04.5]} 0-1

[Event "Late-Titled-Tuesday-Blitz-October-17-2023"]
[Site "Chess.com"]
[Date "2023.10.17"]
[Round "11"]
[White "Elbebiber"]
[Black "Bala-Afiada"]
[Result "1-0"]
[WhiteElo "2136"]
[BlackElo "1913"]
[TimeControl "180+1"]
[EndTime "16:01:21 PDT"]
[Termination "Elbebiber won by resignation"]

1. d4 {[%clk 0:03:00.9]} 1... d5 {[%clk 0:02:37.9]} 2. Nf3 {[%clk 0:02:57.4]}
2... Nf6 {[%clk 0:02:37.5]} 3. Bg5 {[%clk 0:02:56.3]} 3... e6 {[%clk 0:02:32.8]}
4. e3 {[%clk 0:02:54.4]} 4... c5 {[%clk 0:02:32.5]} 5. c3 {[%clk 0:02:43.2]}
5... Nc6 {[%clk 0:02:31.7]} 6. Bd3 {[%clk 0:02:36.4]} 6... Be7 {[%clk
0:02:30.7]} 7. O-O {[%clk 0:02:36]} 7... Qb6 {[%clk 0:02:29]} 8. b3 {[%clk
0:02:32.7]} 8... O-O {[%clk 0:02:27.8]} 9. Re1 {[%clk 0:02:30.6]} 9... h6 {[%clk
0:02:24.9]} 10. Bh4 {[%clk 0:02:29.2]} 10... Qd8 {[%clk 0:02:12.6]} 11. Nbd2
{[%clk 0:02:26.1]} 11... a6 {[%clk 0:02:13.1]} 12. Rc1 {[%clk 0:02:17]} 12... b5
{[%clk 0:02:12.4]} 13. Qe2 {[%clk 0:02:03.9]} 13... c4 {[%clk 0:02:10.2]} 14.
Bb1 {[%clk 0:02:00.2]} 14... cxb3 {[%clk 0:02:09.1]} 15. Nxb3 {[%clk 0:01:56.6]}
15... Na5 {[%clk 0:02:07.6]} 16. Ne5 {[%clk 0:01:50]} 16... Nxb3 {[%clk
0:02:02.5]} 17. axb3 {[%clk 0:01:49.8]} 17... Bb7 {[%clk 0:02:00.2]} 18. Bd3
{[%clk 0:01:46.8]} 18... Rc8 {[%clk 0:01:55.4]} 19. c4 {[%clk 0:01:37.2]} 19...
dxc4 {[%clk 0:01:54.4]} 20. bxc4 {[%clk 0:01:37.7]} 20... bxc4 {[%clk
0:01:51.4]} 21. Bxc4 {[%clk 0:01:34.6]} 21... Nd5 {[%clk 0:01:43.8]} 22. Bg3
{[%clk 0:01:25]} 22... Bd6 {[%clk 0:01:29.2]} 23. Bxa6 {[%clk 0:01:07.7]} 23...
Bxa6 {[%clk 0:01:18.4]} 24. Qxa6 {[%clk 0:01:06.9]} 24... Ra8 {[%clk 0:01:07.8]}
25. Qc6 {[%clk 0:00:50.3]} 25... Bxe5 {[%clk 0:01:05.1]} 26. Bxe5 {[%clk
0:00:49.1]} 26... Qa5 {[%clk 0:01:04.2]} 27. Qc5 {[%clk 0:00:42.6]} 27... Qd2
{[%clk 0:00:56.6]} 28. Qc2 {[%clk 0:00:39]} 28... Qa5 {[%clk 0:00:53.9]} 29. h3
{[%clk 0:00:32.9]} 29... Qa6 {[%clk 0:00:48.9]} 30. Qe2 {[%clk 0:00:30.4]} 30...
Qa3 {[%clk 0:00:43.4]} 31. Qg4 {[%clk 0:00:29.1]} 31... g6 {[%clk 0:00:39.3]}
32. Qg3 {[%clk 0:00:23.6]} 32... Rfc8 {[%clk 0:00:35.5]} 33. Rxc8+ {[%clk
0:00:21.2]} 33... Rxc8 {[%clk 0:00:35.2]} 34. Rf1 {[%clk 0:00:20.5]} 34... Rc1
{[%clk 0:00:33.7]} 35. Rxc1 {[%clk 0:00:18.5]} 35... Qxc1+ {[%clk 0:00:34.6]}
36. Kh2 {[%clk 0:00:19.1]} 36... Qc2 {[%clk 0:00:33.2]} 37. Bf4 {[%clk
0:00:18.3]} 37... Nxf4 {[%clk 0:00:33]} 38. Qxf4 {[%clk 0:00:18.4]} 38... Kg7
{[%clk 0:00:33.3]} 39. Qf3 {[%clk 0:00:18.6]} 39... Qc7+ {[%clk 0:00:30.3]} 40.
g3 {[%clk 0:00:18.4]} 40... Qc2 {[%clk 0:00:29.6]} 41. Kg2 {[%clk 0:00:18.5]}
41... h5 {[%clk 0:00:28.1]} 42. Qf4 {[%clk 0:00:18.4]} 42... Qc8 {[%clk
0:00:21.4]} 43. h4 {[%clk 0:00:18.3]} 43... Qd7 {[%clk 0:00:20.3]} 44. Qe5+
{[%clk 0:00:18.3]} 44... Kh7 {[%clk 0:00:18.7]} 45. Qe4 {[%clk 0:00:18.5]} 45...
Kg7 {[%clk 0:00:18.6]} 46. Qf3 {[%clk 0:00:18.9]} 46... Kh7 {[%clk 0:00:18.4]}
47. g4 {[%clk 0:00:19]} 47... Kg7 {[%clk 0:00:18.9]} 48. gxh5 {[%clk 0:00:19.1]}
48... gxh5 {[%clk 0:00:19.8]} 49. Qxh5 {[%clk 0:00:19.1]} 49... Qb7+ {[%clk
0:00:17.6]} 50. Qf3 {[%clk 0:00:18.8]} 50... Qc7 {[%clk 0:00:17.3]} 51. Qg3+
{[%clk 0:00:19.1]} 51... Kf8 {[%clk 0:00:17.3]} 52. Qxc7 {[%clk 0:00:19.1]} 1-0

[Event "Late-Titled-Tuesday-Blitz-October-17-2023"]
[Site "Chess.com"]
[Date "2023.10.17"]
[Round "11"]
[White "GlavkonVVS"]
[Black "NormWeinstein"]
[Result "0-1"]
[WhiteElo "2511"]
[BlackElo "2419"]
[TimeControl "180+1"]
[EndTime "16:01:22 PDT"]
[Termination "NormWeinstein won on time"]

1. c4 {[%clk 0:02:58.2]} 1... c5 {[%clk 0:02:59.7]} 2. Nc3 {[%clk 0:02:57.9]}
2... Nf6 {[%clk 0:02:59.8]} 3. g3 {[%clk 0:02:57.6]} 3... e6 {[%clk 0:02:59.7]}
4. Bg2 {[%clk 0:02:58.1]} 4... d5 {[%clk 0:02:59.6]} 5. Nf3 {[%clk 0:02:58.7]}
5... Nc6 {[%clk 0:02:56]} 6. O-O {[%clk 0:02:58]} 6... Be7 {[%clk 0:02:55.4]} 7.
d3 {[%clk 0:02:55.5]} 7... O-O {[%clk 0:02:55]} 8. Bd2 {[%clk 0:02:53.1]} 8...
b6 {[%clk 0:02:54.1]} 9. a3 {[%clk 0:02:52]} 9... Bb7 {[%clk 0:02:53.8]} 10.
cxd5 {[%clk 0:02:49.2]} 10... Nxd5 {[%clk 0:02:52.5]} 11. Nxd5 {[%clk
0:02:44.8]} 11... Qxd5 {[%clk 0:02:50.2]} 12. Bc3 {[%clk 0:02:43.4]} 12... Qd7
{[%clk 0:02:49.8]} 13. Qa4 {[%clk 0:02:39.1]} 13... Rac8 {[%clk 0:02:46.5]} 14.
b4 {[%clk 0:02:33.1]} 14... cxb4 {[%clk 0:02:39.7]} 15. axb4 {[%clk 0:02:32.7]}
15... a6 {[%clk 0:02:29.3]} 16. b5 {[%clk 0:02:14.3]} 16... axb5 {[%clk
0:02:11.7]} 17. Qxb5 {[%clk 0:02:13.2]} 17... Nb8 {[%clk 0:01:53.5]} 18. Qb2
{[%clk 0:01:59]} 18... f6 {[%clk 0:01:52.3]} 19. Rfc1 {[%clk 0:01:56.6]} 19...
Qd8 {[%clk 0:01:35.2]} 20. Bh3 {[%clk 0:01:45.7]} 20... Kf7 {[%clk 0:01:14.7]}
21. Nd4 {[%clk 0:01:41.4]} 21... f5 {[%clk 0:01:05]} 22. e4 {[%clk 0:01:25.2]}
22... Bf6 {[%clk 0:00:53.3]} 23. exf5 {[%clk 0:01:21.5]} 23... Rxc3 {[%clk
0:00:47.2]} 24. fxe6+ {[%clk 0:01:12.2]} 24... Kg8 {[%clk 0:00:44]} 25. Qxc3
{[%clk 0:01:08.7]} 25... Bxd4 {[%clk 0:00:41.4]} 26. e7 {[%clk 0:00:41.7]} 26...
Bxf2+ {[%clk 0:00:39.1]} 27. Kf1 {[%clk 0:00:41.9]} 27... Qxe7 {[%clk
0:00:34.8]} 28. Qc4+ {[%clk 0:00:29.6]} 28... Kh8 {[%clk 0:00:34.5]} 29. Qe6
{[%clk 0:00:19.4]} 29... Qg5 {[%clk 0:00:26.3]} 30. Qd6 {[%clk 0:00:12.6]} 30...
Bc5+ {[%clk 0:00:22.2]} 31. Qxf8+ {[%clk 0:00:12]} 31... Bxf8 {[%clk 0:00:21.9]}
32. Rc7 {[%clk 0:00:09.6]} 32... Qd5 {[%clk 0:00:19.8]} 33. Rxb7 {[%clk
0:00:05.3]} 33... Qxb7 {[%clk 0:00:18.9]} 34. Bg2 {[%clk 0:00:05.8]} 34... Qc7
{[%clk 0:00:17.7]} 35. Ra8 {[%clk 0:00:04]} 35... g6 {[%clk 0:00:16.8]} 36. Be4
{[%clk 0:00:04.1]} 36... Kg7 {[%clk 0:00:16.5]} 37. Kg2 {[%clk 0:00:02.7]} 37...
Bc5 {[%clk 0:00:15]} 38. h4 {[%clk 0:00:02.7]} 38... Nd7 {[%clk 0:00:13]} 39. h5
{[%clk 0:00:01.6]} 39... Nf6 {[%clk 0:00:11.8]} 40. hxg6 {[%clk 0:00:01.3]}
40... Nxe4 {[%clk 0:00:11.5]} 41. dxe4 {[%clk 0:00:01.7]} 41... hxg6 {[%clk
0:00:10.9]} 0-1

[Event "Late-Titled-Tuesday-Blitz-October-17-2023"]
[Site "Chess.com"]
[Date "2023.10.17"]
[Round "11"]
[White "Mikhal867"]
[Black "acertijo08"]
[Result "0-1"]
[WhiteElo "2414"]
[BlackElo "2366"]
[TimeControl "180+1"]
[EndTime "16:01:23 PDT"]
[Termination "acertijo08 won by checkmate"]

1. e4 {[%clk 0:02:56.1]} 1... c5 {[%clk 0:02:59.2]} 2. Nf3 {[%clk 0:02:55.1]}
2... d6 {[%clk 0:02:58.7]} 3. Bb5+ {[%clk 0:02:53.7]} 3... Bd7 {[%clk
0:02:58.5]} 4. Bxd7+ {[%clk 0:02:53.6]} 4... Qxd7 {[%clk 0:02:59.4]} 5. c4
{[%clk 0:02:53.8]} 5... Nc6 {[%clk 0:02:58.8]} 6. Nc3 {[%clk 0:02:54.1]} 6... g6
{[%clk 0:02:56.7]} 7. d4 {[%clk 0:02:53.8]} 7... cxd4 {[%clk 0:02:55.5]} 8. Nxd4
{[%clk 0:02:54]} 8... Bg7 {[%clk 0:02:55.9]} 9. Be3 {[%clk 0:02:54.4]} 9... Nf6
{[%clk 0:02:55.7]} 10. f3 {[%clk 0:02:54.2]} 10... O-O {[%clk 0:02:55.8]} 11.
O-O {[%clk 0:02:54.3]} 11... a6 {[%clk 0:02:52.6]} 12. Na4 {[%clk 0:02:44.1]}
12... Qc7 {[%clk 0:02:39.6]} 13. Rc1 {[%clk 0:02:38.3]} 13... Nd7 {[%clk
0:02:26.9]} 14. a3 {[%clk 0:02:26.8]} 14... Rac8 {[%clk 0:02:11.2]} 15. b4
{[%clk 0:02:25.9]} 15... Nce5 {[%clk 0:01:58.5]} 16. c5 {[%clk 0:02:21.2]} 16...
dxc5 {[%clk 0:01:55.3]} 17. Nxc5 {[%clk 0:02:20.5]} 17... Nxc5 {[%clk
0:01:51.5]} 18. Rxc5 {[%clk 0:02:20.3]} 18... Qb8 {[%clk 0:01:51]} 19. f4 {[%clk
0:02:12.1]} 19... Rxc5 {[%clk 0:01:40.7]} 20. bxc5 {[%clk 0:02:11.5]} 20... Nc4
{[%clk 0:01:27.5]} 21. Bc1 {[%clk 0:02:10.8]} 21... Rd8 {[%clk 0:01:25.5]} 22.
e5 {[%clk 0:02:10.9]} 22... Qc7 {[%clk 0:01:20.3]} 23. Rf3 {[%clk 0:01:58]}
23... Qxc5 {[%clk 0:01:16.5]} 24. Rd3 {[%clk 0:01:58]} 24... f6 {[%clk
0:01:04.9]} 25. Kh1 {[%clk 0:01:57.1]} 25... fxe5 {[%clk 0:01:03.5]} 26. Ne6
{[%clk 0:01:55.3]} 26... Rxd3 {[%clk 0:00:56.2]} 27. Qxd3 {[%clk 0:01:55]} 27...
Qc8 {[%clk 0:00:45.6]} 28. Nxg7 {[%clk 0:01:28.4]} 28... Kxg7 {[%clk 0:00:43.5]}
29. fxe5 {[%clk 0:01:28.5]} 29... b5 {[%clk 0:00:32]} 30. h3 {[%clk 0:01:26.9]}
30... Qe6 {[%clk 0:00:29.5]} 31. Bf4 {[%clk 0:01:13.4]} 31... Nxe5 {[%clk
0:00:19.5]} 32. Qc3 {[%clk 0:01:06.7]} 32... Kf6 {[%clk 0:00:19.7]} 33. g4
{[%clk 0:01:05.8]} 33... g5 {[%clk 0:00:18.8]} 34. Bg3 {[%clk 0:01:01]} 34... h6
{[%clk 0:00:18.8]} 35. Qd4 {[%clk 0:00:58.7]} 35... Qc6+ {[%clk 0:00:18.4]} 36.
Kh2 {[%clk 0:00:52.1]} 36... Qc2+ {[%clk 0:00:17.9]} 37. Kg1 {[%clk 0:00:51.9]}
37... Qc1+ {[%clk 0:00:17.2]} 38. Kf2 {[%clk 0:00:51.4]} 38... Qc2+ {[%clk
0:00:14.6]} 39. Ke3 {[%clk 0:00:49.7]} 39... Qb3+ {[%clk 0:00:13.8]} 40. Kd2
{[%clk 0:00:35.8]} 40... Qxg3 {[%clk 0:00:13.3]} 41. Qb6+ {[%clk 0:00:35.7]}
41... e6 {[%clk 0:00:13.2]} 42. Qd8+ {[%clk 0:00:35.1]} 42... Kg7 {[%clk
0:00:12.9]} 43. Qc7+ {[%clk 0:00:33.4]} 43... Kg6 {[%clk 0:00:12.6]} 44. Qc2+
{[%clk 0:00:31.8]} 44... Kf6 {[%clk 0:00:10.8]} 45. Qh7 {[%clk 0:00:27.8]} 45...
Nc4+ {[%clk 0:00:08.2]} 46. Kc2 {[%clk 0:00:26.2]} 46... Qf2+ {[%clk 0:00:07.6]}
47. Kc3 {[%clk 0:00:25.5]} 47... Qd2+ {[%clk 0:00:07.7]} 48. Kb3 {[%clk
0:00:25]} 48... Qb2# {[%clk 0:00:07.8]} 0-1

[Event "Late-Titled-Tuesday-Blitz-October-17-2023"]
[Site "Chess.com"]
[Date "2023.10.17"]
[Round "11"]
[White "h4parah5"]
[Black "K_A_S_T_O_R"]
[Result "1-0"]
[WhiteElo "2944"]
[BlackElo "2870"]
[TimeControl "180+1"]
[EndTime "16:01:25 PDT"]
[Termination "h4parah5 won by resignation"]

1. d4 {[%clk 0:03:00.9]} 1... Nf6 {[%clk 0:02:58.9]} 2. c4 {[%clk 0:03:00.8]}
2... e6 {[%clk 0:02:59.5]} 3. Nc3 {[%clk 0:03:01.2]} 3... Bb4 {[%clk 0:02:59.1]}
4. e3 {[%clk 0:03:00.6]} 4... O-O {[%clk 0:02:58.5]} 5. Bd3 {[%clk 0:03:00.6]}
5... d5 {[%clk 0:02:58.2]} 6. a3 {[%clk 0:03:00.6]} 6... Bxc3+ {[%clk
0:02:53.6]} 7. bxc3 {[%clk 0:03:01.5]} 7... dxc4 {[%clk 0:02:52.4]} 8. Bxc4
{[%clk 0:03:02.4]} 8... c5 {[%clk 0:02:52.7]} 9. Nf3 {[%clk 0:03:01.8]} 9... Qc7
{[%clk 0:02:52.3]} 10. Be2 {[%clk 0:03:02]} 10... b6 {[%clk 0:02:52.1]} 11. O-O
{[%clk 0:02:56.1]} 11... Bb7 {[%clk 0:02:52.1]} 12. Bb2 {[%clk 0:02:55.6]} 12...
Nbd7 {[%clk 0:02:50.9]} 13. c4 {[%clk 0:02:54.7]} 13... cxd4 {[%clk 0:02:48.8]}
14. exd4 {[%clk 0:02:54.1]} 14... Rac8 {[%clk 0:02:39.5]} 15. Rc1 {[%clk
0:02:53.2]} 15... Rfd8 {[%clk 0:02:38.9]} 16. Qb3 {[%clk 0:02:52.7]} 16... Ng4
{[%clk 0:02:32.9]} 17. g3 {[%clk 0:02:40.9]} 17... Qc6 {[%clk 0:02:25.9]} 18.
Rfd1 {[%clk 0:02:37.6]} 18... Qe4 {[%clk 0:02:12.5]} 19. Re1 {[%clk 0:02:37.5]}
19... Qf5 {[%clk 0:02:10.5]} 20. h3 {[%clk 0:02:25.7]} 20... Ngf6 {[%clk
0:02:03.3]} 21. Kh2 {[%clk 0:02:00.4]} 21... h6 {[%clk 0:01:25.8]} 22. Qe3
{[%clk 0:01:55.5]} 22... Qe4 {[%clk 0:01:22.8]} 23. Qxe4 {[%clk 0:01:49]} 23...
Bxe4 {[%clk 0:01:23.2]} 24. a4 {[%clk 0:01:45]} 24... Rc7 {[%clk 0:01:19.9]} 25.
Ba3 {[%clk 0:01:35]} 25... Rdc8 {[%clk 0:01:18.4]} 26. Nd2 {[%clk 0:01:31.2]}
26... Bc6 {[%clk 0:01:15.3]} 27. Bd6 {[%clk 0:01:25.4]} 27... Rb7 {[%clk
0:01:09.4]} 28. Ra1 {[%clk 0:01:24.2]} 28... Ne4 {[%clk 0:00:59.8]} 29. Nxe4
{[%clk 0:01:21.1]} 29... Bxe4 {[%clk 0:01:00.3]} 30. c5 {[%clk 0:01:16.4]} 30...
bxc5 {[%clk 0:00:47.2]} 31. Ba6 {[%clk 0:01:16.3]} 31... Bd5 {[%clk 0:00:45.8]}
32. dxc5 {[%clk 0:01:09.6]} 32... Nxc5 {[%clk 0:00:38.4]} 33. Rec1 {[%clk
0:00:58.7]} 33... Rc6 {[%clk 0:00:34.2]} 34. Bxb7 {[%clk 0:00:56.7]} 34... Rxd6
{[%clk 0:00:34.2]} 35. Bxd5 {[%clk 0:00:54.7]} 35... Rxd5 {[%clk 0:00:33.8]} 36.
Rc2 {[%clk 0:00:54.2]} 36... a5 {[%clk 0:00:30.6]} 37. Kg2 {[%clk 0:00:52.6]}
37... g5 {[%clk 0:00:30.3]} 38. Rc4 {[%clk 0:00:49.8]} 38... Nd3 {[%clk
0:00:27.3]} 39. Rb1 {[%clk 0:00:47.2]} 39... Rf5 {[%clk 0:00:25.8]} 40. Rc2
{[%clk 0:00:39.3]} 40... Re5 {[%clk 0:00:25.5]} 41. Kf1 {[%clk 0:00:37.4]} 41...
Re4 {[%clk 0:00:25.1]} 42. Rb3 {[%clk 0:00:33.4]} 42... Nb4 {[%clk 0:00:23.3]}
43. Rc5 {[%clk 0:00:32.4]} 43... Nd5 {[%clk 0:00:19.9]} 44. Rxa5 {[%clk
0:00:32]} 44... Rc4 {[%clk 0:00:20.3]} 45. Rb2 {[%clk 0:00:31.3]} 45... Rc1+
{[%clk 0:00:18.6]} 46. Kg2 {[%clk 0:00:31.2]} 46... Ra1 {[%clk 0:00:19.5]} 47.
Ra7 {[%clk 0:00:30]} 47... Ra3 {[%clk 0:00:16.9]} 48. Rbb7 {[%clk 0:00:29.5]}
48... Ra2 {[%clk 0:00:14.3]} 49. Rxf7 {[%clk 0:00:28.8]} 49... Ne3+ {[%clk
0:00:14.9]} 50. Kf3 {[%clk 0:00:28.2]} 50... Nd1 {[%clk 0:00:14.5]} 51. Kg4
{[%clk 0:00:26.3]} 51... Nxf2+ {[%clk 0:00:13.1]} 52. Kh5 {[%clk 0:00:26.6]} 1-0